[Event "FIDE Women GP Shimkent 2024"]
[Site "Shimkent"]
[Date "2024.11.01"]
[Round "3.1"]
[White "Divya Deshmukh"]
[Black "Goryachkina, Aleksandra"]
[Result "0-1"]
[ECO "C47"]
[WhiteElo "2501"]
[BlackElo "2533"]
[Annotator "TA"]
[PlyCount "80"]
[EventDate "2024.10.11"]
[EventType "tourn"]
[EventCountry "KAZ"]
[SourceTitle "playchess.com"]
[Source "ChessBase"]
[SourceQuality "1"]
[TimeControl "40/5400+30:1800+30"]

{[%evp 17,80,0,0,0,0,0,0,0,0,0,0,0,6,16,12,3,6,0,0,0,0,0,0,-22,-5,-31,-4,-13,-16,-16,-8,-7,-7,-10,0,0,0,0,0,-22,0,0,0,-64,-71,-60,-41,-91,-99,-402,-394,-464,-457,-1437,-1451,-1330,-1261,-1239,-910,-29991,-1402,-29992,-29991,-29991,-29992]} 1. e4 {[%emt 0:00:08]} e5 {[%emt 0:00:18]} 2. Nf3 {[%emt 0:00:13]} Nc6 {[%emt 0:00:16]} 3. Nc3 {[%emt 0:00:13]} Nf6 {[%emt 0:00:43]} 4. d4 {[%emt 0:00:28]} exd4 {[%emt 0:00:36]} 5. Nxd4 {[%emt 0:00:05]} Bb4 {[%emt 0:00:59]} 6. Nxc6 {[%emt 0:00:26]} bxc6 {[%emt 0:00:29]} 7. Bd3 {[%emt 0:00:21]} O-O {[%emt 0:01:55]} 8. O-O {[%emt 0:00:12]} d5 {[%emt 0:01:48]} 9. exd5 {[%emt 0:00:25]} cxd5 {[%emt 0:00:10]} 10. h3 {[%emt 0:00:17]} c6 {[%emt 0:02:19]} 11. Qf3 {[%emt 0:00:28]} Re8 {[%emt 0:01:41]} 12. Bf4 {[%emt 0:01:18] The position is equal.} Be6 {[%emt 0:06:28]} 13. Ne2 {[%emt 0:06:29]} Bd6 {[%emt 0:01:44]} 14. Rfe1 {[%emt 0:01:08]} Qb8 {[%emt 0:03:11][%cal Od6f4]} 15. b3 {[%emt 0:00:30]} (15. Bxd6 {simplifies} Qxd6 16. Qf4 Qxf4 17. Nxf4 Bd7 18. c4) 15... Bd7 {[%emt 0:02:30][%cal Oe8e2] [#] ...Rxe2! is the strong threat.} (15... Bxf4 {simplifies} 16. Qxf4 a5 17. Qxb8 Raxb8 18. Rad1 h6) 16. Qg3 {[%emt 0:27:59]} (16. Bxd6 {simplifies} Qxd6 17. Qg3 Qxg3 18. Nxg3 c5 19. f3) 16... Bxf4 {[%emt 0:07:27]} 17. Nxf4 {[%emt 0:00:55]} (17. Qxf4 {simplifies} c5 18. Qxb8 Raxb8 19. f3) 17... Qb4 {[%emt 0:05:14]} 18. c3 {[%emt 0:01:29]} Qa3 {[%emt 0:03:54]} 19. Red1 {[%emt 0:02:06]} a5 {[%emt 0:03:49]} 20. Rd2 {[%emt 0:16:20]} Re7 {[%emt 0:06:48]} 21. Rad1 {[%emt 0:02:56]} Rae8 {[%emt 0:00:42]} 22. Kh2 {[%emt 0:03:15]} Re5 {[%emt 0:02:34]} 23. c4 {[%emt 0:11:57]} (23. Qf3 {simplifies} Qd6 24. Kg1 a4 25. c4) 23... h6 {[%emt 0:01:30]} 24. cxd5 {[%emt 0:01:18]} cxd5 {[%emt 0:00:54]} 25. Bb1 {[%emt 0:00:49][%cal Rf4d5]} Bf5 {[%emt 0:02:44]} 26. Bxf5 {[%emt 0:12:13]} Rxf5 {[%emt 0:00:17]} 27. f3 {[%emt 0:02:13] Dodges Ne4} Rg5 {[%emt 0:08:41]} 28. Qh4 {[%emt 0:03:17]} Qd6 {[%emt 0:03:18] [#] And now ...Rf5 would win.} 29. Kh1 {[%emt 0:00:05]} Rge5 {[%emt 0:02:18]} 30. Nd3 {[%emt 0:01:42]} (30. Qf2 $11) 30... Re3 $15 {[%emt 0:01:35]} 31. Qf4 {[%emt 0:00:07]} Qb6 {[%emt 0:01:20]} 32. b4 {[%emt 0:01:42]} (32. Qh4 $1 $15) 32... axb4 $17 {[%emt 0:01:49]} 33. Rb1 $2 {[%emt 0:03:18][%mdl 8192] Loses the game.} (33. Qh4 $17 {is more resistant.}) 33... g5 $19 {[%emt 0:07:50]} 34. Qf5 {[%emt 0:00:23]} Qd6 {[%emt 0:01:11]} 35. Rdd1 {[%emt 0:00:40]} (35. Rxb4 $2 {is a self mate.} Re1+ 36. Nxe1 Rxe1#) (35. h4 $142 Nh5 (35... gxh4 36. Qf4 $15) 36. Qg4 Ng3+ 37. Kg1) 35... Nh5 {[%emt 0:05:07] aiming for ...Ng3+.} 36. Kg1 {[%emt 0:00:28]} Ng3 {[%emt 0:00:16]} 37. Qg4 {[%emt 0:00:01]} Ne2+ {[%emt 0:00:21]} 38. Kf2 {[%emt 0:01:04]} Nc3 {[%emt 0:00:30]} (38... Qb6 $142 39. g3 Rxd3+ (39... R3e4+ $2 40. Kg2 $19) 40. Kg2 Nf4+ 41. gxf4 Re2+ 42. Kh1 Qf2 43. Qc8+ Kg7 44. Qf8+ Kxf8 45. Rxd3 Qh2#) 39. Qxb4 {[%emt 0:00:10]} Qh2 {[%emt 0:02:30]} 40. Rg1 {[%emt 0:00:50]} Rxd3 {[%emt 0:01:58] Weighted Error Value: White=0.70/Black=0.20 (precise) .  Loses game:     	White=1     	---        Mistake:       	White=3     	---        Inaccurate:     	White=1     	---        OK:         	White=10    	Black=12     Best:        	---       	Black=2} 0-1

[Event "FIDE Women GP Shimkent 2024"]
[Site "Shimkent"]
[Date "2024.11.01"]
[Round "3.2"]
[White "Tan, Zhongyi"]
[Black "Lagno, Kateryna"]
[Result "1-0"]
[ECO "D02"]
[WhiteElo "2551"]
[BlackElo "2527"]
[Annotator "TA"]
[PlyCount "81"]
[EventDate "2024.10.11"]
[EventType "tourn"]
[EventCountry "KAZ"]
[SourceTitle "playchess.com"]
[Source "ChessBase"]
[SourceQuality "1"]
[TimeControl "40/5400+30:1800+30"]

{[%evp 29,81,17,63,67,81,66,62,48,74,61,87,84,85,76,75,89,287,339,318,290,255,318,318,287,275,266,470,435,722,669,1955,1956,2225,653,621,0,29972,29973,29973,29973,29974,29975,29979,29980,29980,1255,29981,29982,29985,29983,29982,29983,29983,29984]} 1. d4 {[%emt 0:00:05]} d5 {[%emt 0:00:08]} 2. Nf3 {[%emt 0:00:07]} Nf6 {[%emt 0:00:43]} 3. Bf4 {[%emt 0:00:07]} c5 {[%emt 0:02:25]} 4. e3 {[%emt 0:00:09]} Nc6 {[%emt 0:00:38]} 5. Nbd2 {[%emt 0:00:11]} Nh5 {[%emt 0:00:52]} 6. dxc5 {[%emt 0:05:50] D02: 1 d4 d5 2 Nf3 sidelines, including 2...Nf6 3 g3 and 2...Nf6 3 Bf4.} Nxf4 {[%emt 0:00:09]} 7. exf4 {[%emt 0:00:05]} a5 {[%emt 0:02:30]} 8. a4 {[%emt 0:00:48]} Bg4 $146 {[%emt 0:05:56]} ({Predecessor:} 8... g6 9. Bb5 Bg7 10. Ne5 Qc7 11. Ndf3 f6 12. Nd3 O-O 13. c4 d4 14. O-O e5 {½-½ Koellner,R (2440)-Pechac,J (2597) Mitropa Cup Corte 2022 (7.1)}) 9. Bb5 {[%emt 0:06:35]} e6 {[%emt 0:01:16]} 10. Nb3 {[%emt 0:06:43]} Qc7 {[%emt 0:15:06]} 11. h3 {[%emt 0:00:48]} Bxf3 {[%emt 0:07:56]} 12. Qxf3 {[%emt 0:00:07]} g6 {[%emt 0:02:21]} 13. Qc3 {[%emt 0:10:39]} Rg8 {[%emt 0:00:05]} 14. O-O {[%emt 0:01:37]} Bg7 {[%emt 0:01:18]} 15. Qf3 {[%emt 0:00:18]} Kf8 {[%emt 0:06:34]} (15... Bxb2 $11 {should be considered.} 16. Rab1 Bg7) 16. c3 $14 {[%emt 0:00:57]} Bf6 {[%emt 0:02:43]} 17. Rfe1 {[%emt 0:03:06]} Kg7 {[%emt 0:00:48]} 18. Rad1 {[%emt 0:00:56]} Rgd8 {[%emt 0:05:40]} 19. Nd4 {[%emt 0:05:39]} Rac8 {[%emt 0:15:12]} 20. Qe3 {[%emt 0:07:07]} Kg8 {[%emt 0:05:05]} 21. g3 {[%emt 0:01:39]} Ne7 {[%emt 0:11:01]} 22. b4 {[%emt 0:00:46]} b6 $2 {[%emt 0:01:56]} (22... Rb8 $16) 23. Nxe6 $1 $18 {[%emt 0:22:37]} fxe6 {[%emt 0:00:03]} 24. Qxe6+ {[%emt 0:00:06]} (24. cxb6 Qxc3 25. Qxe6+ Kg7 $18) 24... Kg7 {[%emt 0:00:02]} 25. cxb6 {[%emt 0:00:07]} Qxc3 {[%emt 0:01:11]} 26. bxa5 {[%emt 0:00:28]} Qxa5 {[%emt 0:01:12] [#]} 27. g4 $1 {[%emt 0:00:04]} h6 $2 {[%emt 0:03:20] [#]} (27... Ng8 28. g5 (28. Rxd5 $2 Rxd5 29. Kf1 Rcd8 $19) 28... Bc3 29. Rxd5 Rxd5 (29... Bxe1 30. Rd7+ Rxd7 31. Qxd7+ Kh8 32. Qd4+) 30. Qxc8 Bxe1 31. Qb7+ Kf8 32. Qxd5 Qxb6) 28. h4 $1 $18 {[%emt 0:00:39]} Bxh4 {[%emt 0:01:08]} (28... Ng8 $142 29. g5 (29. Rxd5 $2 Rxd5 30. b7 Rb8 $19) 29... Bc3) 29. g5 $1 $18 {[%emt 0:00:26]} Nf5 {[%emt 0:02:40]} 30. Qf6+ {[%emt 0:03:34]} (30. Rxd5 Bxf2+ (30... hxg5 $2 31. Rxf5 Qd2 32. Rf7+ Kh6 33. Qe2 $18) (30... Rxd5 31. Qf6+ Kg8 32. Qxg6+ Kh8 33. Qf6+ Kg8 34. Re7 $11) 31. Kxf2 Rxd5 32. Qf6+ (32. Qxd5 Rc2+ 33. Re2 Qxb6+ 34. Kf3 Rc3+ 35. Bd3 Nd4+ 36. Ke4 Nxe2 $11) (32. Qxc8 Qd2+ 33. Kf1 Ng3+ 34. Kg1 Qxe1+ 35. Kg2 Rd2+ 36. Kh3 Qh1+ 37. Kg4 h5+ 38. Kxg3 Qg2+ 39. Kh4 Qf2+ 40. Kh3 Qh2#) 32... Kg8 33. Qe6+ (33. Qxg6+ $2 Ng7 $19) 33... Kh7 34. Qf7+ (34. Qxd5 Rc2+ 35. Re2 Qxb6+ 36. Kf3 Rxe2 $11) (34. Qxc8 Qd2+ 35. Kg1 Qxe1+ 36. Bf1 Qe3+ 37. Kh1 Ng3+ 38. Kh2 Nxf1+ 39. Kh1 Ng3+ 40. Kh2 Rd2+ 41. Kh3 Nh5+ 42. Kh4 Qg3#) 34... Kh8 35. Qxd5 Rc2+ (35... Qxb6+ 36. Kf3 $14) 36. Re2 Qxb6+ 37. Kf3 Nd4+ 38. Kg2 Rxe2+ $11 (38... Nxe2 39. Qe5+ Kh7 40. Qe7+ Kg8 41. Qe8+ Kg7 42. Qe7+ Kg8 43. Bc4+ Rxc4 44. Qe8+ Kg7 45. Qe7+ Kg8 46. Qe8+ Kg7 47. Qe7+ Kg8 $11)) 30... Kh7 {[%emt 0:00:03]} 31. Qf7+ {[%emt 0:00:46]} (31. Re7+ $142 Nxe7 32. Qxe7+ Kg8 33. Qe6+ Kh8 34. Qf6+ (34. Qxg6 Bxf2+ 35. Kxf2 Qc3 $18) 34... Kg8 35. Qxg6+ Kh8 36. Bd3 (36. gxh6 $2 Rg8 $19) (36. Qxh6+ Kg8 $18)) 31... Kh8 $18 {[%emt 0:02:10]} 32. Qf6+ {[%emt 0:09:03]} (32. Qxg6 $18 Rf8 33. Re7 (33. gxh6 $2 Rg8 $19) (33. Re5 Bxf2+ 34. Kxf2 Rc2+ 35. Re2 Qc3 $11) 33... Bxf2+ (33... Nxe7 $2 34. Qxh6+ Kg8 35. g6 $18) 34. Kf1 (34. Kxf2 Rc2+ 35. Kf1 Nxe7 $18) 34... Nxe7 35. Qxh6+ Kg8 36. g6 (36. Kxf2 $2 Qb4 $19)) 32... Kh7 {[%emt 0:00:01]} 33. Re7+ {[%emt 0:01:23]} Nxe7 {[%emt 0:00:06]} 34. Qxe7+ {[%emt 0:00:03]} Kh8 {[%emt 0:00:46]} 35. Qf6+ {[%emt 0:00:06]} Kh7 {[%emt 0:00:20]} 36. f5 {[%emt 0:00:27]} Rg8 {[%emt 0:00:39]} 37. fxg6+ {[%emt 0:00:24]} (37. Rxd5 {is a self mate.} Qe1+ (37... Bxg5 38. Rd7+) 38. Bf1 Qxf2+ (38... Bxf2+ 39. Kh2 Bg3+ 40. Kh3 Qxf1+ 41. Kxg3 Qe1+ 42. Kf3 Rc3+ 43. Qxc3 Qxc3+ 44. Kf4 hxg5+ 45. Kg4 Re8 46. Rd7+ Kh6 47. Rh7+ Kxh7 48. a5 Qe3 49. fxg6+ Kxg6 50. b7 Re4#) 39. Kh1 Qxf1+ 40. Kh2 Rc2+) 37... Rxg6 {[%emt 0:00:04]} 38. Bd3 {[%emt 0:00:09]} Rcg8 {[%emt 0:02:06]} 39. Qf7+ {[%emt 0:00:26]} Kh8 {[%emt 0:00:22]} 40. Bxg6 {[%emt 0:00:09]} Bxf2+ {[%emt 0:00:35]} 41. Kg2 {[%emt 0:30:14]} ({Not} 41. Kxf2 Qxb6+ 42. Kf3 Rxg6 $11) 1-0

[Event "FIDE Women GP Shimkent 2024"]
[Site "Shimkent"]
[Date "2024.11.01"]
[Round "3.3"]
[White "Munguntuul, Batkhuyag"]
[Black "Koneru, Humpy"]
[Result "0-1"]
[ECO "C78"]
[WhiteElo "2344"]
[BlackElo "2530"]
[Annotator "TA"]
[PlyCount "64"]
[EventDate "2024.10.11"]
[EventType "tourn"]
[EventCountry "KAZ"]
[SourceTitle "playchess.com"]
[Source "ChessBase"]
[SourceQuality "1"]
[TimeControl "40/5400+30:1800+30"]

{[%evp 14,64,27,24,26,24,21,11,15,-14,-15,-20,0,0,0,0,11,-8,-11,-6,-2,-67,-42,-49,-33,-234,-221,-275,-266,-250,-258,-257,-281,-283,-261,-312,-273,-340,-331,-445,-449,-531,-540,-581,-595,-591,-575,-1102,-873,-851,-802,-1620,-1617]} 1. e4 {[%emt 0:00:30]} e5 {[%emt 0:00:11]} 2. Nf3 {[%emt 0:00:00]} Nc6 {[%emt 0:00:10]} 3. Bb5 {[%emt 0:00:00][%cal Bf1b5,Bb5a4,Ba4b3][%mdl 32]} a6 {[%emt 0:00:19]} 4. Ba4 {[%emt 0:00:00]} Nf6 {[%emt 0:00:20]} 5. O-O {[%emt 0:00:00]} Bc5 {[%emt 0:00:48]} 6. d3 {[%emt 0:07:12]} b5 {[%emt 0:00:41]} 7. Bb3 {[%emt 0:00:04]} O-O {[%emt 0:00:38]} 8. Bg5 {[%emt 0:03:46]} h6 {[%emt 0:02:28]} 9. Bh4 {[%emt 0:12:02]} Be7 {[%emt 0:04:06]} 10. a3 {[%emt 0:28:21]} d6 {[%emt 0:01:33] The position is equal.} 11. Bxf6 {[%emt 0:02:48]} Bxf6 {[%emt 0:00:07]} 12. Nc3 {[%emt 0:00:47]} g6 {[%emt 0:09:23]} 13. Nd5 {[%emt 0:03:52]} Bg7 {[%emt 0:01:47]} 14. c3 {[%emt 0:00:28]} Kh8 {[%emt 0:09:00]} 15. Nd2 {[%emt 0:05:49]} Na5 {[%emt 0:09:11]} 16. Ba2 {[%emt 0:03:57]} f5 {[%emt 0:06:03]} 17. f4 {[%emt 0:01:59]} ({White should play} 17. exf5 $11 Bxf5 18. Qc2) 17... c6 {[%emt 0:01:24]} (17... fxe4 $5 18. fxe5 (18. Nxe4 c6 $17) 18... exd3 $15) 18. Ne3 {[%emt 0:04:10]} Qb6 {[%emt 0:07:44] Hoping for ...exf4.} 19. Qe2 $2 {[%emt 0:00:07] This costs White the game.} (19. Qe1 $1 $15) 19... fxe4 $19 {[%emt 0:01:52]} 20. fxe5 {[%emt 0:11:58] [#]} Bg4 $1 {[%emt 0:00:30][%mdl 512]} 21. Qe1 {[%emt 0:04:22]} ({Much worse is} 21. Qxg4 Qxe3+ 22. Kh1 Qxd2 $19) 21... exd3 {[%emt 0:00:29]} (21... Bxe5 $2 {perishes.} 22. d4 Bxd4 23. cxd4 Qxd4 24. Rf2 $18) 22. Rxf8+ {[%emt 0:00:19]} Rxf8 {[%emt 0:00:30]} 23. exd6 {[%emt 0:00:12]} Nb7 {[%emt 0:15:33]} 24. Kh1 {[%emt 0:04:35]} Be2 {[%emt 0:00:51]} 25. Qg3 {[%emt 0:00:45] [#]} Nxd6 {[%emt 0:00:50][%cal Oh8h7][%mdl 512]} 26. Rg1 {[%emt 0:03:25]} (26. Nef1 Rf6) 26... Qc5 {[%emt 0:03:31] Black is clearly winning.} 27. Bb1 {[%emt 0:01:36]} Be5 {[%emt 0:05:47]} 28. Qh3 {[%emt 0:00:06] White is weak on the dark squares} Bf4 {[%emt 0:00:07] This pair of bishops is nice.} 29. Nef1 {[%emt 0:00:59]} Qf5 {[%emt 0:00:27] Strongly threatening ...Qxh3.} 30. g4 {[%emt 0:00:30]} Qd5+ {[%emt 0:00:58]} 31. Qg2 {[%emt 0:00:02]} Nc4 {[%emt 0:01:07]} (31... Bxg4 32. Qxd5 cxd5 33. Rxg4 $16) 32. Ne4 {[%emt 0:00:49]} Ne3 {[%emt 0:01:28] Weighted Error Value: White=0.71/Black=0.17 (very precise) .  Loses game:     	White=1     	---        Mistake:       	White=1     	---        Inaccurate:     	White=3     	---        OK:         	White=5     	Black=11     Best:        	White=3     	Black=2      Brilliant:      	---       	Black=1} 0-1

[Event "FIDE Women GP Shimkent 2024"]
[Site "Shimkent"]
[Date "2024.11.01"]
[Round "3.4"]
[White "Salimova, Nurgyul"]
[Black "Paehtz, Elisabeth"]
[Result "1/2-1/2"]
[ECO "A49"]
[WhiteElo "2405"]
[BlackElo "2458"]
[Annotator "TA"]
[PlyCount "67"]
[EventDate "2024.10.11"]
[EventType "tourn"]
[EventCountry "KAZ"]
[SourceTitle "playchess.com"]
[Source "ChessBase"]
[SourceQuality "1"]
[TimeControl "40/5400+30:1800+30"]

{[%evp 9,67,16,16,6,6,8,18,0,5,7,8,4,7,2,8,5,21,25,23,10,7,10,18,0,2,0,0,0,0,0,0,0,9,0,12,0,8,8,8,8,8,8,10,8,19,19,25,8,35,8,23,17,25,24,8,0,31,0,16,0]} 1. d4 {[%emt 0:00:07]} Nf6 {[%emt 0:00:04]} 2. Nf3 {[%emt 0:00:21]} g6 {[%emt 0:00:21]} 3. g3 {[%emt 0:00:10]} Bg7 {[%emt 0:00:05]} 4. Bg2 {[%emt 0:00:04]} O-O {[%emt 0:00:05]} 5. O-O {[%emt 0:00:06]} c6 {[%emt 0:00:02]} 6. Re1 {[%emt 0:03:32]} d5 {[%emt 0:00:06]} 7. Nbd2 {[%emt 0:02:41]} Bf5 {[%emt 0:01:45]} 8. Nh4 {[%emt 0:04:15]} Be6 {[%emt 0:00:05][%cal Oc6c5]} 9. c3 {[%emt 0:00:14]} Nbd7 {[%emt 0:02:18][%cal Bb8d7,Bd7b6,Bb6c4][%mdl 32]} 10. e4 {[%emt 0:02:46]} dxe4 {[%emt 0:00:05]} 11. Nxe4 {[%emt 0:00:04]} Nxe4 {[%emt 0:00:04]} 12. Bxe4 {[%emt 0:00:20]} Bd5 {[%emt 0:02:58]} 13. Bxd5 {[%emt 0:06:45]} cxd5 {[%emt 0:00:04]} 14. Qb3 {[%emt 0:00:32]} Nb6 {[%emt 0:00:13]} 15. Nf3 {[%emt 0:07:00]} e6 {[%emt 0:01:40]} 16. a4 {[%emt 0:02:13]} Qc8 {[%emt 0:09:29]} 17. Bf4 {[%emt 0:10:41]} Nc4 {[%emt 0:01:37]} 18. Qc2 {[%emt 0:03:27]} Qd8 {[%emt 0:00:20]} 19. h4 {[%emt 0:01:00][%cal Oh4h5]} h5 {[%emt 0:04:03]} 20. Re2 {[%emt 0:04:09]} Qf6 {[%emt 0:03:49]} 21. a5 {[%emt 0:05:43]} b6 {[%emt 0:02:44]} 22. a6 {[%emt 0:00:58]} Qf5 {[%emt 0:05:37]} 23. Qxf5 {[%emt 0:02:12]} gxf5 {[%emt 0:00:04]} 24. Ne1 {[%emt 0:01:48]} Rfc8 {[%emt 0:06:01]} 25. Nd3 {[%emt 0:00:15]} Bf8 {[%emt 0:00:27][%cal Bg7f8,Bf8e7,Be7d6][%mdl 32]} 26. f3 {[%emt 0:09:10]} Be7 {[%emt 0:00:39]} 27. Bg5 {[%emt 0:02:28]} Bd6 {[%emt 0:00:13]} 28. Rg2 {[%emt 0:07:40]} Kh7 {[%emt 0:09:01]} 29. Bf4 {[%emt 0:14:19]} Be7 {[%emt 0:00:12]} 30. Re1 {[%emt 0:01:50]} Rg8 {[%emt 0:01:19]} 31. Bc1 {[%emt 0:00:51]} Bd6 {[%emt 0:00:16]} 32. Bf4 {[%emt 0:00:29]} Be7 {[%emt 0:00:04]} 33. Bc1 {[%emt 0:00:48]} Bd6 {[%emt 0:00:05]} 34. Bf4 {[%emt 0:01:16] Not much happened in this game.   Weighted Error Value: White=0.07 (flawless) /Black=0.04 (flawless) .  Inaccurate:     	White=1     	Black=1      OK:         	White=6     	Black=14} 1/2-1/2

[Event "FIDE Women GP Shimkent 2024"]
[Site "Shimkent"]
[Date "2024.11.01"]
[Round "3.5"]
[White "Assaubayeva, Bibisara"]
[Black "Tsolakidou, Stavroula"]
[Result "1/2-1/2"]
[ECO "E92"]
[WhiteElo "2487"]
[BlackElo "2439"]
[Annotator "TA"]
[PlyCount "94"]
[EventDate "2024.10.11"]
[EventType "tourn"]
[EventCountry "KAZ"]
[SourceTitle "playchess.com"]
[Source "ChessBase"]
[SourceQuality "1"]
[TimeControl "40/5400+30:1800+30"]

{[%evp 21,94,35,13,37,35,20,0,0,19,0,5,13,0,0,7,0,0,0,0,0,0,0,0,0,0,0,0,0,0,0,0,-42,-10,-89,-104,-108,-109,-97,-103,-95,-99,-93,-64,-67,-66,-107,-108,-109,-101,-123,-88,-109,-79,-86,-90,-78,-77,-79,-93,-88,-65,-65,-65,-71,-70,-76,-9,-8,-1,-2,-6,-6,0,0,0]} 1. Nf3 {[%emt 0:00:04]} Nf6 {[%emt 0:00:09]} 2. c4 {[%emt 0:00:06]} g6 {[%emt 0:00:07]} 3. Nc3 {[%emt 0:00:10]} Bg7 {[%emt 0:00:07]} 4. d4 {[%emt 0:00:14]} O-O {[%emt 0:00:18]} 5. e4 {[%emt 0:00:08]} d6 {[%emt 0:00:15]} 6. Be2 {[%emt 0:00:13]} e5 {[%emt 0:00:20]} 7. d5 {[%emt 0:00:15]} a5 {[%emt 0:00:20]} 8. Bg5 {[%emt 0:00:36]} h6 {[%emt 0:00:40]} 9. Be3 {[%emt 0:00:18]} Ng4 {[%emt 0:01:00] E92: King's Indian: Classical: 6 Be2 e5: 7 dxe5, 7 Be3 and Petrosian System without 7...Nbd7.} 10. Bd2 {[%emt 0:00:21]} f5 {[%emt 0:00:20]} 11. h3 {[%emt 0:00:20]} Nf6 {[%emt 0:00:18]} 12. exf5 {[%emt 0:00:06]} gxf5 {[%emt 0:00:07]} 13. g4 {[%emt 0:00:03]} fxg4 {[%emt 0:02:41]} 14. hxg4 {[%emt 0:00:05]} Nxg4 {[%emt 0:00:07]} 15. Ne4 {[%emt 0:00:05]} Na6 {[%emt 0:00:41]} 16. Nh4 {[%emt 0:00:34]} (16. Bxa5 $2 Rf4 17. Ng3 e4 $19) 16... Nc5 $1 {[%emt 0:00:45]} 17. Bxg4 {[%emt 0:00:25]} (17. Nxc5 $2 Nxf2 18. Qb3 Nxh1 $19) 17... Nxe4 {[%emt 0:00:08]} 18. Be3 {[%emt 0:00:04]} Qf6 {[%emt 0:02:45]} 19. Bxc8 {[%emt 0:00:18]} Raxc8 {[%emt 0:00:31]} 20. Qc2 {[%emt 0:00:07]} Ng5 {[%emt 0:01:05]} 21. O-O-O {[%emt 0:00:40]} c6 {[%emt 0:01:25]} 22. Kb1 {[%emt 0:03:23]} Rf7 $146 {[%emt 0:15:49]} ({Predecessor:} 22... cxd5 23. Rxd5 Qe6 24. Qd3 Qg4 25. Ng6 Rf7 26. Rxd6 Qe4 27. Qxe4 Nxe4 28. Re6 Nxf2 29. Rg1 Nh3 30. Rg4 Kh7 31. Nxe5 Rf5 {½-½ Devnani,K (2230)-Sredojevic,I (2267) Budapest FS03 IM-2 2024 (4)}) 23. f4 {[%emt 0:31:36]} cxd5 $1 {[%emt 0:24:38]} (23... exf4 $6 24. Bd4 Qe7 25. Rde1 $18) 24. fxg5 {[%emt 0:05:37]} hxg5 {[%emt 0:00:06]} 25. Bxg5 {[%emt 0:09:56]} Qxg5 {[%emt 0:01:01]} 26. Rxd5 {[%emt 0:00:19]} Rf4 {[%emt 0:17:38]} 27. Qg6 {[%emt 0:02:19] [#]} (27. Ng2 $11 Rfxc4 28. Qh7+ Kf8 29. Rf1+ Bf6 (29... Ke7 30. Ne3 $11) 30. Ne3 (30. Rxa5 $2 Rc1+ 31. Rxc1 Rxc1#) 30... Rc1+ 31. Rxc1 Rxc1+ 32. Kxc1 Qxe3+ 33. Kb1 Qe1+ 34. Kc2) 27... Qf6 $1 $17 {[%emt 0:00:50]} 28. Rxd6 {[%emt 0:06:11]} (28. Qh5 e4 29. Rd2 e3 (29... Rxc4 30. Qd5+ Qf7 31. Qxd6 $11) 30. Qd5+ Kf8 (30... Qf7 $2 31. Re2 $19) 31. Qxd6+ Qxd6 32. Rxd6 Rf2 (32... Rcxc4 $2 33. Ng6+ Kf7 34. Nxf4 $18) (32... Rfxc4 33. Rf1+ Ke8 34. Nf5 $11) 33. Ng6+ Kf7 34. Rd7+ Kxg6 $19) 28... Rf1+ {[%emt 0:00:07]} 29. Rd1 {[%emt 0:00:08]} Qxg6+ {[%emt 0:01:46]} (29... Rxd1+ 30. Rxd1 Qxg6+ (30... Qxh4 $2 {is the wrong capture.} 31. Qe6+ Kh8 32. Qxc8+ Kh7 33. Qxb7 $18) 31. Nxg6) 30. Nxg6 {[%emt 0:00:06]} Rxh1 {[%emt 0:00:08]} 31. Rxh1 {[%emt 0:00:09]} Rxc4 {[%emt 0:03:34]} 32. Re1 {[%emt 0:03:28]} Rc5 $1 {[%emt 0:00:00]} 33. Ne7+ {[%emt 0:00:12]} Kf7 {[%emt 0:00:00]} 34. Nf5 {[%emt 0:00:05]} Bf8 {[%emt 0:03:08]} 35. Ng3 {[%emt 0:00:27]} Be7 {[%emt 0:02:36]} 36. Ne4 {[%emt 0:00:48]} Rc6 {[%emt 0:00:53]} 37. Rc1 {[%emt 0:07:05]} Rb6 {[%emt 0:02:29]} (37... Rxc1+ 38. Kxc1 Ke6 39. Kd2 $15) 38. Rc7 {[%emt 0:06:07]} Ke6 {[%emt 0:03:27]} 39. Kc2 {[%emt 0:01:44]} Rb4 {[%emt 0:03:54]} 40. Nc3 {[%emt 0:07:34]} Bd6 {[%emt 0:01:38]} 41. Rh7 {[%emt 0:31:48]} Be7 {[%emt 0:40:07]} 42. Rh6+ {[%emt 0:04:25]} Bf6 {[%emt 0:00:00]} 43. Rh7 {[%emt 0:00:00]} e4 {[%emt 0:00:00]} (43... b6 $17) 44. a3 $11 {[%emt 0:00:00]} Rb6 {[%emt 0:00:00]} 45. Nxe4 {[%emt 0:00:00]} Rxb2+ {[%emt 0:00:00]} (45... Bxb2 $2 {too greedy.} 46. Rh6+ Kd7 47. Rxb6 $18) 46. Kc1 {[%emt 0:00:00]} Bd4 {[%emt 0:00:00]} 47. Nc5+ {[%emt 0:00:00]} Kd5 {[%emt 0:00:00]} (47... Bxc5 48. Kxb2 b5 49. Rb7 $18) 1/2-1/2